bitfinex/quotes_BTCUSD_20220205
["timestamp","ask_amount","ask_price","bid_price","bid_amount"]
[1644023764246,0.107546,41421.0,41416.0,0.05]
[1644023764552,0.107546,41421.0,41411.0,0.002]
[1644023764553,0.16209483,41421.0,41411.0,0.002]
[1644023764760,0.107546,41420.0,41411.0,0.002]
[1644023765294,0.16078894,41415.0,41411.0,0.002]
[1644023765500,0.107546,41414.0,41411.0,0.002]
[1644023766304,0.74814001,41435.0,41413.0,0.05]
[1644023766500,0.00326407,41427.0,41423.0,0.05]
[1644023767099,0.00326407,41427.0,41424.0,0.331116]
[1644023767298,0.00326407,41427.0,41426.0,0.331116]
[1644023767499,0.18001254,41430.0,41424.0,0.060323]
[1644023768298,0.18001254,41430.0,41424.0,0.22737873]
[1644023768701,0.33853214,41436.0,41424.0,0.22737873]
[1644023768702,0.07586515,41436.0,41424.0,0.22737873]
[1644023768957,0.00360388,41435.0,41433.0,0.05]
[1644023769151,0.00326384,41435.0,41434.0,0.56871202]
[1644023769345,0.00326384,41435.0,41434.0,0.61321202]
[1644023769553,0.00326384,41435.0,41434.0,0.71321202]
[1644023769744,0.00326384,41435.0,41434.0,0.9029055]
[1644023769945,0.4159,41459.0,41441.0,0.19269109]
[1644023769946,0.06937539,41449.0,41441.0,0.19269109]
[1644023770148,0.367,41458.0,41444.0,0.05]
[1644023770149,0.107546,41450.0,41444.0,0.05]
[1644023770346,0.00081568,41452.0,41444.0,0.110296]
[1644023770546,0.107546,41451.0,41444.0,0.060296]
[1644023770748,0.107546,41451.0,41443.0,0.0445]
[1644023771146,0.20441898,41447.0,41443.0,0.0945]
[1644023771349,0.00081578,41452.0,41443.0,0.32453871]
[1644023771547,0.00081578,41452.0,41446.0,0.05]
[1644023771946,0.05,41447.0,41444.0,0.08557146]
[1644023772149,0.05081578,41452.0,41443.0,0.204799]
[1644023772348,0.05,41444.0,41443.0,0.535915]
[1644023772810,0.05,41444.0,41443.0,0.475616]
[1644023772992,0.15566356,41447.0,41443.0,0.475616]
[1644023773193,0.15566356,41447.0,41443.0,0.1445]
[1644023773400,0.15566356,41447.0,41443.0,0.0445]
[1644023773794,0.05,41444.0,41443.0,0.0445]
[1644023774199,0.00081576,41452.0,41443.0,0.104799]
[1644023774395,0.05,41447.0,41444.0,0.331116]
[1644023774596,0.05081576,41452.0,41444.0,0.21655866]
[1644023774796,0.4952,41461.0,41446.0,0.120578]
[1644023774996,0.3897,41465.0,41448.0,0.331116]
[1644023774997,0.00081576,41452.0,41448.0,0.331116]
[1644023775196,0.00081576,41452.0,41450.0,0.391397]
[1644023775394,0.00081576,41452.0,41450.0,0.491397]
[1644023775794,0.05,41456.0,41450.0,0.491397]
[1644023775999,0.05,41456.0,41450.0,0.160281]
[1644023776196,0.00081579,41453.0,41451.0,0.331116]
[1644023776662,0.00081579,41453.0,41451.0,0.431116]
[1644023777162,0.23937948,41458.0,41451.0,0.1]
[1644023777467,0.02,41459.0,41451.0,0.1]
[1644023777468,0.00081577,41454.0,41453.0,0.120555]
[1644023777665,0.00081577,41454.0,41453.0,0.496171]
[1644023777866,0.02,41459.0,41455.0,0.331116]
[1644023778065,0.02,41459.0,41456.0,0.0445]
[1644023778266,0.02,41459.0,41457.0,0.53841821]
[1644023778467,0.02,41459.0,41458.0,0.0445]
[1644023778669,0.02,41459.0,41458.0,0.375616]
[1644023778869,0.02,41469.0,41459.0,0.95]
[1644023779070,0.02,41469.0,41460.0,0.496135]
[1644023779266,0.02,41469.0,41460.0,0.696135]
[1644023779468,0.02,41469.0,41465.0,0.16301622]
[1644023779673,0.02,41469.0,41466.0,0.375616]
[1644023779867,0.02,41469.0,41466.0,0.1]
[1644023780702,0.20561689,41468.0,41466.0,0.1]
[1644023780896,0.02,41469.0,41466.0,0.1]
[1644023781096,0.05,41467.0,41464.0,0.0445]
[1644023782599,0.26033882,41465.0,41464.0,0.0445]
[1644023783696,0.00081562,41467.0,41465.0,0.331116]
[1644023783949,0.00081562,41467.0,41465.0,0.391385]
[1644023784347,0.00033978,41468.0,41465.0,0.391385]
[1644023784547,0.05,41467.0,41465.0,0.391385]
[1644023785849,0.08563888,41466.0,41464.0,0.0445]
[1644023786454,0.05033978,41467.0,41464.0,0.0445]
[1644023786651,0.107546,41466.0,41464.0,0.0445]
[1644023786858,0.107546,41466.0,41457.0,0.120547]
[1644023787052,0.107546,41466.0,41455.0,0.05]
[1644023787053,0.05,41458.0,41455.0,0.05]
[1644023787255,0.05,41458.0,41453.0,0.060286]
[1644023787454,0.08159735,41457.0,41453.0,0.060286]
[1644023787698,0.1541075,41455.0,41453.0,0.060286]
[1644023788793,0.00033978,41456.0,41453.0,0.060286]
[1644023788996,0.00115552,41457.0,41454.0,0.331116]
[1644023789194,0.05,41458.0,41454.0,0.331116]
[1644023789394,0.00081574,41457.0,41454.0,0.331116]
[1644023789894,0.00081574,41457.0,41455.0,0.2016073]
[1644023790094,0.00115552,41457.0,41453.0,0.060286]
[1644023790295,0.00033978,41457.0,41453.0,0.060286]
[1644023790496,0.05,41454.0,41453.0,0.060286]
[1644023791198,0.00033978,41457.0,41453.0,0.060286]
[1644023791444,0.16272049,41460.0,41453.0,0.060286]
[1644023791445,0.31726381,41454.0,41453.0,0.060286]
[1644023791650,0.00033978,41457.0,41453.0,0.060286]
[1644023791843,0.00081574,41457.0,41453.0,0.060286]
[1644023792243,0.00115552,41457.0,41453.0,0.060286]
[1644023792443,0.00081574,41457.0,41453.0,0.060286]
[1644023792646,0.00326221,41466.0,41453.0,0.060286]
[1644023792647,0.00033978,41459.0,41453.0,0.060286]
[1644023792847,0.00033978,41457.0,41454.0,0.331116]
[1644023793044,0.00033978,41457.0,41453.0,0.060286]
[1644023793045,0.00081574,41457.0,41456.0,0.331116]
[1644023793243,0.00081574,41457.0,41456.0,0.375616]
[1644023793445,0.00081574,41457.0,41456.0,0.475616]
[1644023793643,0.00081574,41457.0,41456.0,0.525616]
[1644023793845,0.00033978,41463.0,41456.0,0.525616]
[1644023794045,0.00033978,41464.0,41458.0,0.060274]
[1644023794352,0.00081784,41459.0,41458.0,0.39139]
[1644023794545,0.00081784,41459.0,41458.0,0.43589]
[1644023794745,0.00081784,41459.0,41458.0,0.53589]
[1644023794946,0.00081784,41459.0,41458.0,0.69448858]
[1644023795197,0.05,41462.0,41458.0,0.64998858]
[1644023795392,0.00033978,41462.0,41459.0,0.331116]
[1644023795599,0.00081782,41461.0,41459.0,0.331116]
[1644023795792,0.00081782,41461.0,41459.0,0.431116]
[1644023795992,0.00081782,41461.0,41459.0,0.481116]
[1644023796193,0.00081782,41461.0,41460.0,0.331116]
[1644023796393,0.00033978,41463.0,41460.0,0.431116]
[1644023796594,0.0008178,41462.0,41460.0,0.431116]
[1644023797000,0.0008178,41462.0,41458.0,0.060274]
[1644023797001,0.05,41461.0,41458.0,0.060274]
[1644023797194,0.05,41461.0,41457.0,0.220548]
[1644023797395,0.107546,41460.0,41457.0,0.120548]
[1644023797595,0.05,41459.0,41455.0,0.1]
[1644023797796,0.00115759,41461.0,41455.0,0.1]
[1644023797994,0.05,41456.0,41455.0,0.1]
[1644023798395,0.30349906,41456.0,41453.0,0.120564]
[1644023798594,0.30349906,41456.0,41450.0,0.120572]
[1644023798595,0.26283232,41455.0,41450.0,0.120572]
[1644023798797,0.26283232,41455.0,41451.0,0.5]
[1644023799062,0.05,41452.0,41447.0,0.17320032]
[1644023799258,0.00081787,41457.0,41447.0,0.17320032]
[1644023799259,0.00033978,41454.0,41447.0,0.17320032]
[1644023799459,0.00033978,41455.0,41447.0,0.17320032]
[1644023799662,0.05,41455.0,41447.0,0.17320032]
[1644023800060,0.05,41455.0,41447.0,0.29378232]
[1644023800259,0.05,41450.0,41447.0,0.120582]
[1644023800859,0.00033978,41452.0,41448.0,0.0051433]
[1644023801061,0.0448567,41454.0,41447.0,0.120582]
[1644023801062,0.0448567,41454.0,41447.0,0.28709024]
[1644023801259,0.00033978,41453.0,41449.0,0.331116]
[1644023801460,0.04519648,41454.0,41449.0,0.331116]
[1644023801660,0.0448567,41454.0,41449.0,0.431116]
[1644023802269,0.0448567,41454.0,41449.0,0.1]
[1644023802461,0.0448567,41454.0,41452.0,0.060285]
[1644023803301,0.0448567,41454.0,41447.0,0.120582]
[1644023803501,0.0448567,41450.0,41447.0,0.120582]
[1644023804500,0.30607037,41450.0,41447.0,0.120582]
[1644023804702,0.30607037,41450.0,41448.0,0.331116]
[1644023804904,0.0448567,41450.0,41448.0,0.331116]
[1644023805701,0.0448567,41450.0,41449.0,0.0051433]
[1644023805902,0.0448567,41450.0,41449.0,0.331116]
[1644023806100,0.0448567,41450.0,41449.0,0.3362593]
[1644023806301,0.0448567,41450.0,41449.0,0.4362593]
[1644023807746,0.0448567,41450.0,41449.0,0.2257243]
[1644023808147,0.00084078,41453.0,41450.0,0.331116]
[1644023808345,0.000501,41453.0,41450.0,0.431116]
[1644023808545,0.0403577,41452.0,41450.0,0.431116]
[1644023808747,0.0403577,41452.0,41451.0,0.50860313]
[1644023808945,0.00033978,41454.0,41451.0,0.50860313]
[1644023809144,0.00033978,41455.0,41454.0,0.54770338]
[1644023809344,0.04151532,41456.0,41454.0,0.54770338]
[1644023809544,0.0403577,41456.0,41454.0,0.54770338]
[1644023809746,0.0403577,41456.0,41454.0,0.64770338]
[1644023810200,0.00081787,41457.0,41454.0,0.64770338]
[1644023810395,0.0403577,41456.0,41454.0,0.64770338]
[1644023810894,0.0403577,41456.0,41454.0,0.491397]
[1644023811101,0.00081786,41457.0,41455.0,0.16751508]
[1644023811297,0.00081786,41457.0,41456.0,0.3407583]
[1644023811497,0.00081786,41457.0,41456.0,0.4352583]
[1644023811694,0.00033978,41460.0,41457.0,0.95]
[1644023811895,0.00033978,41465.0,41460.0,0.391381]
[1644023812094,0.00121754,41466.0,41463.0,0.120524]
[1644023812295,0.00121754,41466.0,41464.0,0.331116]
[1644023812495,0.00121754,41466.0,41465.0,0.0096423]
[1644023812698,0.00121754,41466.0,41464.0,0.0445]
[1644023812897,0.0403577,41465.0,41464.0,0.0445]
[1644023813198,0.0403577,41465.0,41464.0,0.375616]
[1644023813496,0.0403577,41465.0,41464.0,0.64604571]
[1644023813695,0.0403577,41465.0,41464.0,0.475616]
[1644023814547,0.0403577,41465.0,41464.0,0.64243012]
[1644023814747,0.00033978,41468.0,41464.0,0.64387941]
[1644023814748,0.04069748,41468.0,41464.0,0.64387941]
[1644023814949,0.0403577,41468.0,41467.0,0.331116]
[1644023815149,0.02,41469.0,41464.0,0.37302441]
[1644023815150,0.21134729,41466.0,41464.0,0.37302441]
[1644023815355,0.05,41468.0,41466.0,0.95]
[1644023815550,0.00033978,41468.0,41467.0,0.374908]
[1644023815749,0.02,41469.0,41467.0,0.3816083]
[1644023815951,0.00361162,41473.0,41468.0,0.55]
[1644023816149,0.00033978,41471.0,41470.0,0.060247]
[1644023816352,0.00361162,41473.0,41471.0,0.330408]
[1644023816550,0.05,41472.0,41471.0,0.330408]
[1644023816750,0.05,41472.0,41471.0,0.474908]
[1644023816951,0.00149996,41474.0,41471.0,0.474908]
[1644023817152,0.00149996,41474.0,41472.0,0.330408]
[1644023817350,0.00149996,41474.0,41473.0,0.0945]
[1644023817711,0.00149996,41474.0,41473.0,0.0445]
[1644023817905,0.0011948,41474.0,41473.0,0.374908]
[1644023818100,0.0011948,41474.0,41473.0,0.0445]
[1644023818301,0.0011948,41474.0,41473.0,0.04549506]
[1644023819102,0.0011948,41474.0,41473.0,0.21336968]
[1644023820105,0.0011948,41474.0,41473.0,0.04549506]
[1644023820508,0.00079922,41476.0,41473.0,0.04549506]
[1644023820705,0.00079922,41476.0,41474.0,0.060256]
[1644023820905,0.00079922,41476.0,41475.0,0.0445]
[1644023821106,0.00079922,41476.0,41475.0,0.165003]
[1644023821546,0.18787001,41479.0,41475.0,0.16599806]
[1644023821748,0.00079919,41478.0,41475.0,0.16599806]
[1644023822747,0.20223884,41478.0,41475.0,0.16599806]
[1644023823151,0.01733376,41479.0,41475.0,0.16599806]
[1644023823851,0.01653458,41479.0,41475.0,0.16599806]
[1644023824251,0.01681929,41479.0,41475.0,0.16599806]
[1644023824450,0.01681929,41479.0,41475.0,0.12149806]
[1644023824951,0.20856387,41478.0,41475.0,0.12149806]
[1644023825202,0.26180217,41476.0,41475.0,0.12149806]
[1644023826198,0.41275153,41476.0,41475.0,0.12149806]
[1644023826398,0.26180217,41476.0,41475.0,0.12149806]
[1644023828701,0.26180217,41476.0,41475.0,0.00099506]
[1644023828951,0.59221017,41476.0,41475.0,0.00099506]
[1644023829349,0.59221017,41476.0,41472.0,0.00099506]
[1644023829550,0.08426151,41473.0,41472.0,0.00099506]
[1644023829750,0.330408,41473.0,41472.0,0.00099506]
[1644023830151,0.26180217,41476.0,41472.0,0.00099506]
[1644023830152,0.00079858,41475.0,41472.0,0.00099506]
[1644023830749,0.07979325,41473.0,41470.0,0.10601674]
[1644023830950,0.00079858,41475.0,41470.0,0.10601674]
[1644023831148,0.26180217,41476.0,41470.0,0.10601674]
[1644023831349,0.00079859,41474.0,41470.0,0.10601674]
[1644023832253,0.0858763,41471.0,41470.0,0.10601674]
[1644023833505,0.0858763,41471.0,41467.0,0.120531]
[1644023833701,0.0858763,41471.0,41463.0,0.170546]
[1644023833900,0.0858763,41471.0,41456.0,0.05]
[1644023834100,0.08834663,41459.0,41456.0,0.05]
[1644023834300,0.25833619,41463.0,41456.0,0.05]
[1644023834700,0.005,41459.0,41456.0,0.045]
[1644023834900,0.005,41459.0,41457.0,0.060281]
[1644023835099,0.005,41458.0,41457.0,0.060281]
[1644023835301,0.005,41458.0,41457.0,0.390689]
[1644023835499,0.005,41459.0,41457.0,0.390689]
[1644023835698,0.005,41459.0,41457.0,0.060281]
[1644023836453,0.005,41459.0,41458.0,0.045]
[1644023837155,0.005,41459.0,41457.0,0.060281]
[1644023840494,0.005,41459.0,41458.0,0.330408]
[1644023840893,0.005,41459.0,41457.0,0.060281]
[1644023842592,0.005,41459.0,41458.0,0.045]
[1644023843193,0.005,41459.0,41458.0,0.375458]
[1644023843594,0.005,41459.0,41458.0,0.53997874]
[1644023843795,0.0007488,41461.0,41459.0,0.25]
[1644023844051,0.0007488,41461.0,41460.0,0.50401828]
[1644023844247,0.0007488,41461.0,41460.0,0.55401828]
[1644023844447,0.01870622,41464.0,41463.0,0.511243]
[1644023844647,0.00299463,41469.0,41463.0,0.76276911]
[1644023844848,0.00299463,41469.0,41468.0,0.05]
[1644023845046,0.00299463,41469.0,41468.0,0.20566238]
[1644023845247,0.00299463,41469.0,41468.0,0.05]
[1644023845646,0.57726528,41475.0,41468.0,0.05]
[1644023845847,0.330458,41474.0,41468.0,0.05]
[1644023846248,0.57726528,41475.0,41468.0,0.05]
[1644023846550,0.19896528,41475.0,41468.0,0.110263]
[1644023846749,0.18527511,41473.0,41468.0,0.30686745]
[1644023846950,0.18527511,41473.0,41468.0,0.110263]
[1644023847151,0.18527511,41473.0,41468.0,0.210263]
[1644023847547,0.18527511,41473.0,41469.0,0.330458]
[1644023847797,0.18527511,41473.0,41469.0,0.430458]
[1644023848196,0.1860569,41473.0,41469.0,0.430458]
[1644023848801,0.00078179,41473.0,41469.0,0.430458]
[1644023849199,0.19896528,41475.0,41469.0,0.430458]
[1644023849397,0.00078179,41473.0,41469.0,0.1]
[1644023849798,0.17206736,41473.0,41469.0,0.330458]
[1644023849997,0.17206736,41473.0,41469.0,0.430458]
[1644023850398,0.17128557,41473.0,41469.0,0.1]
[1644023850697,0.17206626,41473.0,41469.0,0.1]
[1644023850897,0.17206626,41473.0,41468.0,0.110263]
[1644023851097,0.17206626,41473.0,41468.0,0.158463]
[1644023851544,0.17128557,41473.0,41468.0,0.158463]
[1644023851749,0.17128557,41473.0,41468.0,0.108463]
[1644023851945,0.17206626,41473.0,41468.0,0.108463]
[1644023852745,0.17128557,41473.0,41468.0,0.108463]
[1644023852948,0.17206668,41473.0,41468.0,0.108463]
[1644023854045,0.17128557,41473.0,41468.0,0.108463]
[1644023854249,0.17206675,41473.0,41468.0,0.108463]
[1644023855299,0.17128557,41473.0,41468.0,0.108463]
[1644023855498,0.17206675,41473.0,41468.0,0.108463]
[1644023856302,0.16875124,41472.0,41467.0,0.120525]
[1644023856498,0.330458,41471.0,41467.0,0.120525]
[1644023857302,0.08405445,41464.0,41463.0,0.12725672]
[1644023858500,0.07905445,41464.0,41463.0,0.12725672]
[1644023859052,0.24387295,41464.0,41463.0,0.120555]
[1644023859248,0.56278104,41464.0,41463.0,0.119555]
[1644023859551,0.40951245,41464.0,41463.0,0.119555]
[1644023859847,0.78144016,41464.0,41463.0,0.119555]
[1644023860050,0.62624211,41464.0,41463.0,0.119555]
[1644023861049,0.62124211,41464.0,41463.0,0.119555]
[1644023861251,0.330458,41464.0,41463.0,0.169555]
[1644023861448,0.0008036,41466.0,41463.0,0.169555]
[1644023862052,0.0008036,41466.0,41463.0,0.119555]
[1644023862450,0.22821931,41468.0,41463.0,0.119555]
[1644023862708,0.00080359,41467.0,41463.0,0.119555]
[1644023863595,0.15283425,41465.0,41463.0,0.119555]
[1644023863798,0.082319,41464.0,41463.0,0.119555]
[1644023864397,0.082319,41464.0,41458.0,0.120538]
[1644023864398,0.58188884,41464.0,41462.0,0.120555]
[1644023864603,0.113305,41463.0,41462.0,0.120555]
[1644023864797,0.113305,41463.0,41457.0,0.05]
[1644023864798,0.15757426,41458.0,41457.0,0.05]
[1644023864998,0.082319,41464.0,41457.0,0.05]
[1644023865196,0.07736938,41455.0,41452.0,0.05]
[1644023865399,0.07736938,41455.0,41449.0,0.291093]
[1644023865598,0.07736938,41455.0,41451.0,0.060289]
[1644023865799,0.21655372,41461.0,41451.0,0.060289]
[1644023866198,0.21655372,41461.0,41457.0,0.05]
[1644023866452,0.113305,41458.0,41457.0,0.170572]
[1644023866653,0.18494517,41459.0,41457.0,0.170572]
[1644023866852,0.18494517,41459.0,41457.0,0.105572]
[1644023867255,0.330458,41458.0,41457.0,0.105572]
[1644023867753,0.39506829,41458.0,41457.0,0.105572]
[1644023868154,0.330458,41458.0,41457.0,0.105572]
[1644023868354,0.18494517,41459.0,41457.0,0.105572]
[1644023868755,0.330458,41462.0,41458.0,0.05]
[1644023868958,0.330458,41462.0,41457.0,0.105572]
[1644023869858,0.330458,41462.0,41457.0,0.10637534]
[1644023870061,0.330458,41462.0,41459.0,0.060284]
[1644023870296,0.07447832,41461.0,41457.0,0.10637534]
[1644023870496,0.15901317,41459.0,41457.0,0.10637534]
[1644023870698,0.48705853,41458.0,41457.0,0.10637534]
[1644023870895,0.48892948,41458.0,41457.0,0.105572]
[1644023871211,0.330458,41458.0,41457.0,0.105572]
[1644023871296,0.330458,41458.0,41457.0,0.060285]
[1644023872299,0.07447832,41461.0,41457.0,0.110285]
[1644023872501,0.330458,41460.0,41457.0,0.060285]
[1644023872730,0.00077871,41463.0,41459.0,0.08461453]
[1644023872902,0.00077871,41463.0,41462.0,0.110268]
[1644023873098,0.02069774,41463.0,41462.0,0.110268]
[1644023873298,0.01991903,41463.0,41462.0,0.61300542]
[1644023873696,0.01991903,41463.0,41462.0,0.71300542]
[1644023873951,0.01991903,41463.0,41462.0,0.540726]
[1644023874350,0.01991903,41463.0,41462.0,0.588926]
[1644023875152,0.01991903,41463.0,41462.0,0.638926]
[1644023875451,0.00072938,41465.0,41463.0,0.450995]
[1644023875650,0.14860572,41468.0,41464.0,0.378658]
[1644023875850,0.06444169,41472.0,41466.0,0.390724]
[1644023876049,0.00293006,41473.0,41467.0,0.0482]
[1644023876251,0.15585145,41473.0,41467.0,0.0482]
[1644023876449,0.00293006,41473.0,41467.0,0.0482]
[1644023876854,0.17809469,41468.0,41467.0,0.0482]
[1644023877049,0.21731944,41474.0,41467.0,0.0482]
[1644023877050,0.00073259,41472.0,41467.0,0.0382]
[1644023877451,0.0642744,41471.0,41468.0,0.05]
[1644023877705,0.0642744,41471.0,41466.0,0.060265]
[1644023877896,0.20439641,41472.0,41470.0,0.05]
[1644023878096,0.20439641,41472.0,41471.0,0.060268]
[1644023878097,0.20366382,41472.0,41471.0,0.060268]
[1644023879496,0.53412182,41472.0,41471.0,0.060268]
[1644023879896,0.70023629,41472.0,41471.0,0.060268]
[1644023880298,3.19097815,41472.0,41471.0,0.060268]
[1644023881546,3.19097815,41472.0,41470.0,0.120536]
[1644023881747,0.26915104,41471.0,41470.0,0.120536]
[1644023881949,0.113305,41471.0,41466.0,0.120547]
[1644023882149,0.27081484,41471.0,41466.0,0.120547]
[1644023882950,0.55746612,41467.0,41466.0,0.120547]
[1644023883148,0.80166577,41467.0,41466.0,0.120547]
[1644023883351,0.80166577,41467.0,41464.0,0.060279]
[1644023883548,0.108312,41466.0,41464.0,0.060279]
[1644023883748,0.48620066,41465.0,41464.0,0.060279]
[1644023883948,0.330414,41465.0,41464.0,0.060279]
[1644023884251,0.53028327,41465.0,41464.0,0.060279]
[1644023885050,0.108356,41464.0,41462.0,0.06028]
[1644023885906,0.330414,41466.0,41462.0,0.06028]
[1644023886106,0.07338466,41467.0,41463.0,0.330414]
[1644023886307,0.00076122,41467.0,41463.0,0.330414]
[1644023886508,0.61173458,41479.0,41465.0,0.05]
[1644023886509,0.01653458,41479.0,41465.0,0.05]
[1644023886705,0.00295259,41473.0,41469.0,0.390676]
[1644023886904,0.1910219,41473.0,41469.0,0.060262]
[1644023887103,0.1910219,41473.0,41469.0,0.110262]
[1644023887706,0.07568867,41472.0,41469.0,0.110262]
[1644023887905,0.07568867,41472.0,41469.0,0.060262]
[1644023888209,0.330414,41471.0,41469.0,0.110262]
[1644023888407,0.07568867,41472.0,41469.0,0.060262]
[1644023888606,0.07568867,41472.0,41469.0,0.110262]
[1644023889647,0.22928438,41472.0,41469.0,0.110262]
[1644023889845,0.07568867,41472.0,41469.0,0.060262]
[1644023890448,0.07568867,41472.0,41469.0,0.110262]
[1644023891050,0.07568867,41472.0,41469.0,0.060262]
[1644023894503,0.00073487,41473.0,41469.0,0.110262]
[1644023894903,0.01932643,41476.0,41469.0,0.110262]
[1644023895103,0.00073486,41473.0,41469.0,0.110262]
[1644023895705,0.00073486,41473.0,41472.0,0.05]
[1644023895909,0.00073486,41473.0,41472.0,0.110262]
[1644023896108,0.06451917,41474.0,41472.0,0.060262]
[1644023898559,0.06451917,41474.0,41467.0,0.1982]
[1644023898560,0.1628379,41473.0,41470.0,0.06027]
[1644023898859,0.4932519,41473.0,41470.0,0.06027]
[1644023899155,1.77672679,41472.0,41470.0,0.06027]
[1644023899356,0.108356,41471.0,41470.0,0.06027]
[1644023899555,0.31150186,41471.0,41470.0,0.06027]
[1644023899754,0.46453382,41471.0,41470.0,0.06027]
[1644023900057,0.31150186,41471.0,41470.0,0.06027]
[1644023900306,0.31150186,41471.0,41467.0,0.120537]
[1644023901006,0.20314586,41471.0,41467.0,0.120537]
[1644023901204,0.20388071,41471.0,41467.0,0.120537]
[1644023902010,0.20314586,41471.0,41467.0,0.120537]
[1644023902408,0.20388071,41471.0,41467.0,0.120537]
[1644023903008,0.20380586,41471.0,41467.0,0.120537]
[1644023903220,0.1544333,41470.0,41467.0,0.120537]
[1644023903414,0.1544333,41470.0,41464.0,0.060278]
[1644023903415,0.330414,41468.0,41464.0,0.060278]
[1644023903609,2.10125284,41469.0,41464.0,0.060278]
[1644023903610,0.17258904,41466.0,41464.0,0.060278]
[1644023903809,0.49728892,41465.0,41464.0,0.060278]
[1644023904053,0.330414,41465.0,41464.0,0.060278]
[1644023904447,0.330414,41465.0,41464.0,0.110278]
[1644023904849,0.06423304,41466.0,41464.0,0.060278]
[1644023905448,0.15187434,41465.0,41464.0,0.060278]
[1644023905648,0.06423304,41466.0,41464.0,0.060278]
[1644023906453,0.06423304,41466.0,41461.0,0.170551]
[1644023906654,0.37663876,41464.0,41461.0,0.120551]
[1644023907255,0.14901966,41464.0,41461.0,0.120551]
[1644023907452,0.330414,41463.0,41461.0,0.120551]
[1644023908295,0.14975492,41464.0,41461.0,0.120551]
[1644023908896,0.330414,41463.0,41461.0,0.120551]
[1644023909096,0.14975492,41464.0,41461.0,0.12046168]
[1644023909300,0.330414,41463.0,41461.0,0.12046168]
[1644023910499,0.303414,41463.0,41461.0,0.12046168]
[1644023912149,0.14975456,41464.0,41462.0,0.05]
[1644023912351,0.330439,41463.0,41462.0,0.05]
[1644023912546,0.302439,41463.0,41462.0,0.05]
[1644023912747,0.0007349,41464.0,41462.0,0.05]
[1644023912947,0.06423304,41466.0,41462.0,0.05]
[1644023913147,0.0007349,41465.0,41462.0,0.05]
[1644023913346,0.15964976,41465.0,41461.0,0.12046168]
[1644023913746,0.0007349,41465.0,41461.0,0.12046168]
[1644023913950,0.15790896,41464.0,41461.0,0.12046168]
[1644023914348,0.301436,41463.0,41461.0,0.12046168]
[1644023916100,0.272436,41463.0,41461.0,0.12046168]
[1644023918307,0.244436,41463.0,41461.0,0.12046168]
[1644023919750,0.00073494,41464.0,41462.0,0.05]
[1644023920153,4.99525594,41467.0,41463.0,0.25]
[1644023920350,4.99525594,41467.0,41465.0,0.170529]
[1644023920949,4.97373494,41467.0,41465.0,0.170529]
[1644023921150,4.97373494,41467.0,41466.0,0.060265]
[1644023921548,4.97373494,41467.0,41466.0,0.108465]
[1644023922249,4.94573494,41467.0,41466.0,0.108465]
[1644023924095,4.92173494,41467.0,41466.0,0.108465]
[1644023926445,4.89473494,41467.0,41466.0,0.108465]
[1644023928448,4.86873494,41467.0,41466.0,0.108465]
[1644023929251,4.86373494,41467.0,41466.0,0.108465]
[1644023929448,4.86373494,41467.0,41466.0,0.158465]
[1644023929648,4.86373494,41467.0,41466.0,0.18454256]
[1644023930298,4.83773494,41467.0,41466.0,0.18454256]
[1644023931898,4.83773494,41467.0,41466.0,0.13454256]
[1644023932600,4.81273494,41467.0,41466.0,0.13454256]
[1644023933948,4.81273494,41467.0,41466.0,0.108465]
[1644023934250,4.81273494,41467.0,41466.0,0.010265]
[1644023935050,4.78473494,41467.0,41466.0,0.060265]
[1644023937553,4.75673494,41467.0,41466.0,0.060265]
[1644023939909,4.72973494,41467.0,41466.0,0.060265]
[1644023940312,4.72973494,41467.0,41466.0,0.010265]
[1644023940808,4.72973494,41467.0,41466.0,0.060265]
[1644023942647,4.70573494,41467.0,41466.0,0.060265]
[1644023943048,4.70573494,41467.0,41466.0,0.09730728]
[1644023943447,4.70573494,41467.0,41466.0,0.060265]
[1644023944749,4.68173494,41467.0,41466.0,0.060265]
[1644023945402,4.68173494,41467.0,41466.0,0.108465]
[1644023946403,0.00077974,41469.0,41467.0,0.83153]
[1644023946609,0.00034045,41475.0,41468.0,2.45156638]
[1644023946806,5.36e-06,41482.0,41479.0,0.01215497]
[1644023947004,5.36e-06,41482.0,41481.0,0.05]
[1644023947203,5.36e-06,41482.0,41481.0,0.0982]
[1644023947412,0.02,41489.0,41482.0,0.33044]
[1644023947603,0.02,41489.0,41488.0,0.11023]
[1644023948202,0.02,41489.0,41488.0,0.60519181]
[1644023948403,0.02,41489.0,41488.0,0.70519181]
[1644023948802,0.015,41489.0,41488.0,0.70519181]
[1644023949957,0.015,41489.0,41488.0,0.54067]
[1644023950156,0.015,41489.0,41488.0,0.58887]
[1644023951160,0.015,41489.0,41488.0,0.48887]
[1644023952161,0.015,41489.0,41488.0,0.10843]
[1644023952363,0.015,41489.0,41488.0,0.06023]
[1644023953000,0.015,41489.0,41487.0,0.12046]
[1644023957750,0.0149,41489.0,41487.0,0.12046]
[1644023959754,0.0149,41489.0,41488.0,0.05]
[1644023960202,0.0149,41489.0,41488.0,0.170474]
[1644023963301,0.07283337,41492.0,41488.0,0.170474]
[1644023963504,0.00034173,41491.0,41488.0,0.170474]
[1644023963803,0.00082201,41491.0,41488.0,0.170474]
[1644023964651,0.07283337,41492.0,41488.0,0.170474]
[1644023964851,0.04583337,41492.0,41488.0,0.170474]
[1644023966155,0.04583337,41492.0,41488.0,0.120474]
[1644023966651,0.04583337,41492.0,41488.0,0.170474]
[1644023966852,0.04583337,41492.0,41488.0,0.120474]
[1644023967453,0.0461751,41492.0,41488.0,0.120474]
[1644023967900,0.0461751,41492.0,41488.0,0.28791108]
[1644023968095,0.00034173,41492.0,41491.0,0.05]
[1644023968296,0.23790251,41495.0,41491.0,0.110234]
[1644023968297,0.00034173,41494.0,41491.0,0.110234]
[1644023968497,0.00082197,41493.0,41491.0,0.110234]
[1644023968697,0.00082197,41493.0,41491.0,0.060234]
[1644023969295,0.08698587,41493.0,41491.0,0.060234]
[1644023969696,0.0011637,41494.0,41491.0,0.110234]